fUSD/lending_fUSD_20241016
["ID","MTS","AMOUNT","RATE_DAILY","PERIOD"]
[340320042,1729042249914,-569.99,0.00010958,2]
[340320043,1729042249924,-500.0,0.00010958,2]
[340320044,1729042249934,-500.0,0.00010958,2]
[340320045,1729042249943,-500.0,0.00010958,2]
[340320046,1729042249953,-500.0,0.00010958,2]
[340320047,1729042249962,-732.5,0.00010958,2]
[340320048,1729042249972,-529.48917414,0.00010958,2]
[340320049,1729042249982,-500.0,0.00010958,2]
[340320050,1729042249992,-500.0,0.00010958,2]
[340320051,1729042250002,-288.73735991,0.00010958,2]
[340320052,1729042250012,-500.0,0.00010958,2]
[340320053,1729042250021,-727.14,0.00010958,2]
[340320054,1729042250031,-500.0,0.00010958,2]
[340320055,1729042250041,-427.02283748,0.00010958,2]
[340320056,1729042250050,-500.0,0.00010958,2]
[340320057,1729042250060,-500.0,0.00010958,2]
[340320058,1729042250070,-500.0,0.00010958,2]
[340320059,1729042250080,-1086.41,0.00010958,2]
[340320060,1729042250089,-500.0,0.00010958,2]
[340320061,1729042250098,-2129.85,0.00010958,2]
[340320062,1729042250108,-260.48519219,0.00010958,2]
[340320063,1729042250117,-1883.21,0.00010958,2]
[340320064,1729042250127,-500.0,0.00010958,2]
[340320065,1729042250137,-330.01585242,0.00010958,2]
[340320066,1729042250146,-554.74,0.00010958,2]
[340320067,1729042250155,-554.74,0.00010958,2]
[340320068,1729042250165,-554.74,0.00010958,2]
[340320069,1729042250174,-383.17028346,0.00010958,2]
[340320070,1729042250183,-500.0,0.00010958,2]
[340320071,1729042250193,-500.0,0.00010958,2]
[340320072,1729042250202,-254.08971726,0.00010958,2]
[340320073,1729042250212,-500.0,0.00010958,2]
[340320074,1729042250221,-534.22269647,0.00010958,2]
[340320075,1729042250231,-500.0,0.00010958,2]
[340320076,1729042250240,-500.0,0.00010958,2]
[340320077,1729042250250,-500.0,0.00010958,2]
[340320078,1729042250259,-500.0,0.00010958,2]
[340320079,1729042250269,-500.0,0.00010958,2]
[340320080,1729042250279,-500.0,0.00010958,2]
[340320081,1729042250289,-146.31664852,0.00010958,2]
[340320082,1729042250309,-353.68335148,0.00010958,2]
[340320083,1729042250319,-568.48418077,0.00010958,2]
[340320084,1729042250328,-500.0,0.00010958,2]
[340320085,1729042250338,-500.0,0.00010958,2]
[340320086,1729042250348,-500.0,0.00010958,2]
[340320087,1729042250359,-500.0,0.00010958,2]
[340320088,1729042250370,-500.0,0.00010958,2]
[340320089,1729042250381,-500.0,0.00010958,2]
[340320090,1729042250390,-593.98508703,0.00010958,2]
[340320091,1729042250399,-500.0,0.00010958,2]
[340320092,1729042250409,-531.53,0.00010958,2]
[340320093,1729042250418,-828.61,0.00010958,2]
[340320094,1729042250428,-531.53,0.00010958,2]
[340320095,1729042250437,-407.15334252,0.00010958,2]
[340320096,1729042250446,-500.0,0.00010958,2]
[340320097,1729042250456,-500.0,0.00010958,2]
[340320098,1729042250466,-500.0,0.00010958,2]
[340320099,1729042250475,-500.0,0.00010958,2]
[340320100,1729042250485,-2556.96,0.00010958,2]
[340320101,1729042250494,-1842.0538143,0.00010958,2]
[340320102,1729042276197,343.15,8.219e-05,2]
[340320112,1729042320888,261.192131,0.00027,60]
[340320113,1729042391877,2000.0,0.00027,120]
[340320115,1729042434453,250.0,9.822e-05,2]
[340320117,1729042462233,206.85,9.822e-05,2]
[340320118,1729042462253,800.0,9.822e-05,2]
[340320119,1729042462274,800.0,9.822e-05,2]
[340320120,1729042462293,800.0,9.822e-05,2]
[340320121,1729042462312,800.0,9.822e-05,2]
[340320122,1729042462334,800.0,9.822e-05,2]
[340320123,1729042462355,800.0,9.822e-05,2]
[340320124,1729042462373,800.0,9.822e-05,2]
[340320125,1729042462400,18093.15,9.822e-05,2]
[340320126,1729042548207,171.92,9.951e-05,2]
[340320127,1729042606286,163.71882502,0.00027,60]
[340320129,1729042746432,1000.0,9.951e-05,2]
[340320130,1729042748340,250.0,9.955e-05,2]
[340320131,1729042749047,154.96,9.955e-05,2]
[340320132,1729042781343,325.99,8.219e-05,2]
[340320134,1729042948500,1852.42,9.82e-05,2]
[340320135,1729042993488,2000.0,0.00027,120]
[340320136,1729043043867,150.0,9.812e-05,2]
[340320137,1729043043889,150.0,9.812e-05,2]
[340320138,1729043043909,150.0,9.812e-05,2]
[340320139,1729043043930,150.0,9.812e-05,2]
[340320140,1729043043951,243.39206353,9.812e-05,2]
[340320141,1729043043972,151.52,9.812e-05,2]
[340320142,1729043043996,22905.08793647,9.812e-05,2]
[340320144,1729043056693,156.23,9.812e-05,2]
[340320145,1729043060095,250.0,9.812e-05,2]
[340320146,1729043254723,250.0,9.81e-05,2]
[340320147,1729043272606,154.96,9.81e-05,2]
[340320148,1729043362794,309.69,8.219e-05,2]
[340320150,1729043368469,1000.0,9.81e-05,2]
[340320151,1729043371730,1000.0,0.00027,60]
[340320153,1729043432062,-309.69,0.00010466,2]
[340320154,1729043432082,-150.0,0.00010723,2]
[340320155,1729043432091,-150.0,0.0001073,2]
[340320156,1729043432100,-150.0,0.00010734,2]
[340320157,1729043432109,-150.0,0.00010735,2]
[340320158,1729043432119,-150.0,0.00010736,2]
[340320159,1729043432127,-170.67634633,0.00010736,2]
[340320160,1729043432137,-150.0,0.00010742,2]
[340320161,1729043432146,-150.0,0.00010747,2]
[340320162,1729043432155,-150.0,0.00010747,2]
[340320163,1729043432163,-136.68721937,0.00010749,2]
[340320164,1729043432174,-13.31278063,0.00010749,2]
[340320165,1729043432183,-150.0,0.0001075,2]
[340320166,1729043432192,-499.99,0.0001075,2]
[340320167,1729043432201,-150.0,0.00010754,2]
[340320168,1729043432211,-150.0,0.00010757,2]
[340320169,1729043432220,-150.0,0.00010758,2]
[340320170,1729043432229,-150.0,0.0001076,2]
[340320171,1729043432239,-150.0,0.0001076,2]
[340320172,1729043432248,-150.0,0.00010763,2]
[340320173,1729043432257,-150.0,0.00010764,2]
[340320174,1729043432266,-150.0,0.00010766,2]
[340320175,1729043432275,-150.0,0.00010767,2]
[340320176,1729043432285,-150.0,0.0001077,2]
[340320177,1729043432294,-150.0,0.00010772,2]
[340320178,1729043432302,-150.0,0.00010774,2]
[340320179,1729043432312,-150.0,0.00010774,2]
[340320180,1729043432321,-150.0,0.00010776,2]
[340320181,1729043432330,-150.0,0.00010776,2]
[340320182,1729043432339,-150.0,0.00010777,2]
[340320183,1729043432349,-150.0,0.0001078,2]
[340320185,1729043432358,-150.0,0.00010783,2]
[340320186,1729043432367,-150.0,0.00010783,2]
[340320187,1729043432377,-300.0,0.00010783,2]
[340320188,1729043432386,-150.0,0.00010788,2]
[340320189,1729043432395,-413.2202,0.00010791,2]
[340320190,1729043432404,-150.0,0.00010794,2]
[340320191,1729043432414,-150.0,0.00010797,2]
[340320192,1729043432423,-150.0,0.00010797,2]
[340320193,1729043432433,-150.0,0.00010801,2]
[340320194,1729043432442,-150.0,0.00010807,2]
[340320195,1729043432452,-150.0,0.00010809,2]
[340320196,1729043432461,-150.0,0.00010809,2]
[340320197,1729043432471,-150.0,0.0001081,2]
[340320198,1729043432480,-150.0,0.0001081,2]
[340320199,1729043432489,-150.0,0.0001081,2]
[340320200,1729043432498,-150.0,0.00010811,2]
[340320201,1729043432508,-150.0,0.00010815,2]
[340320202,1729043432517,-150.0,0.00010818,2]
[340320203,1729043432526,-150.0,0.00010818,2]
[340320204,1729043432535,-14.26756265,0.00010822,2]
[340320205,1729043432547,-135.73243735,0.00010822,2]
[340320206,1729043432556,-150.0,0.00010823,2]
[340320207,1729043432566,-38.12918265,0.00010824,2]
[340320208,1729043432600,-111.87081735,0.00010824,2]
[340320209,1729043432610,-150.0,0.00010825,2]
[340320210,1729043432619,-57.98956464,0.00010833,2]
[340320211,1729043432630,-92.01043536,0.00010833,2]
[340320212,1729043432639,-150.0,0.00010833,2]
[340320213,1729043432648,-150.0,0.00010842,2]
[340320214,1729043432658,-5.07340885,0.00010847,2]
[340320215,1729043432669,-144.92659115,0.00010847,2]
[340320216,1729043432678,-150.0,0.00010848,2]
[340320217,1729043432687,-150.0,0.00010851,2]
[340320218,1729043432696,-150.0,0.00010854,2]
[340320219,1729043432705,-150.0,0.00010856,2]
[340320220,1729043432715,-77.57340885,0.00010858,2]
[340320221,1729043432725,-258.76851609,0.00010858,2]
[340320222,1729043432737,-1578.55756815,0.00010858,2]
[340320224,1729043437970,-416.63850691,0.00010858,2]
[340320225,1729043437979,-150.0,0.00010867,2]
[340320226,1729043437989,-150.0,0.00010878,2]
[340320227,1729043437998,-132.75389431,0.00010886,2]
[340320228,1729043438216,-17.24610569,0.00010886,2]
[340320229,1729043438226,-1130.5798,0.00010891,2]
[340320230,1729043438235,-68.19601867,0.00010891,2]
[340320231,1729043438246,-194.24388133,0.00010891,2]
[340320232,1729043438255,-20003.66355444,0.00010891,2]
[340320233,1729043438266,-896.54677076,0.00010891,2]
[340320234,1729043440091,-3835.80015978,0.00010891,2]
[340320235,1729043440104,-306.09729367,0.00010891,2]
[340320236,1729043440115,-3249.95340702,0.00010891,2]
[340320237,1729043440126,-758.79780336,0.00010891,2]
[340320238,1729043440137,-526.41,0.00010891,2]
[340320239,1729043440148,-533.57219762,0.00010891,2]
[340320431,1729043443054,-338.94299958,0.00010891,2]
[340320432,1729043443238,-313.75221724,0.00010891,2]
[340320433,1729043443252,-291.59768324,0.00010891,2]
[340320434,1729043446164,-96717.08290168,0.00010891,2]
[340320435,1729043446177,-22359.76791161,0.00010891,2]
[340320436,1729043446187,-24402.7291,0.00010891,2]
[340320437,1729043446196,-201.46794606,0.00010895,2]
[340320438,1729043446207,-119.95546672,0.00010896,2]
[340320439,1729043446218,-30.04453328,0.00010896,2]
[340320440,1729043446227,-150.0,0.00010896,2]
[340320441,1729043446236,-150.0,0.00010897,2]
[340320442,1729043446246,-201.46794604,0.00010898,2]
[340320443,1729043446256,-300.0,0.00010899,2]
[340320444,1729043446265,-214.30178855,0.00010899,2]
[340320445,1729043446274,-165.27381556,0.000109,2]
[340320446,1729043446284,-165.27381554,0.000109,2]
[340320447,1729043446293,-165.27381554,0.000109,2]
[340320448,1729043446302,-214.30178855,0.000109,2]
[340320449,1729043446311,-201.46794604,0.000109,2]
[340320450,1729043446320,-150.0,0.00010903,2]
[340320451,1729043446329,-150.0,0.00010909,2]
[340320452,1729043446338,-150.0,0.00010912,2]
[340320453,1729043446347,-150.0,0.00010913,2]
[340320454,1729043446356,-150.0,0.00010915,2]
[340320455,1729043446366,-150.0,0.00010922,2]
[340320456,1729043446375,-150.0,0.00010923,2]
[340320457,1729043446386,-150.0,0.00010923,2]
[340320458,1729043446396,-150.0,0.00010927,2]
[340320459,1729043446407,-150.0,0.00010927,2]
[340320460,1729043446417,-150.0,0.00010927,2]
[340320461,1729043446426,-150.0,0.00010927,2]
[340320462,1729043446435,-150.0,0.00010928,2]
[340320463,1729043446445,-150.0,0.00010929,2]
[340320464,1729043446454,-150.0,0.00010935,2]
[340320465,1729043446463,-150.0,0.00010935,2]
[340320466,1729043446473,-150.0,0.00010938,2]
[340320467,1729043446482,-150.0,0.00010939,2]
[340320468,1729043446491,-150.0,0.00010943,2]
[340320469,1729043446499,-48.0490698,0.00010948,2]
[340320470,1729043457206,155.37,9.989e-05,2]
[340320471,1729043575464,550.0,0.0001,2]
[340320472,1729043578428,23298.15,9.942e-05,2]
[340320473,1729043591840,2000.0,0.00027,120]
[340320474,1729043594346,374.0,9.944e-05,2]
[340320475,1729043615034,190.83,9.936e-05,2]
[340320478,1729043628738,250.0,9.936e-05,2]
[340320479,1729043637579,172.71,9.936e-05,2]
[340320482,1729043694636,163.24,9.921e-05,2]
[340320483,1729043694830,163.24,9.927e-05,2]
[340320484,1729043695034,163.24,9.933e-05,2]
[340320485,1729043695234,163.24,9.939e-05,2]
[340320486,1729043695585,163.24,9.945e-05,2]
[340320487,1729043695640,163.24,9.952e-05,2]
[340320488,1729043695870,163.24,9.958e-05,2]
[340320489,1729043696090,163.24,9.964e-05,2]
[340320490,1729043696504,163.24,9.97e-05,2]
[340320491,1729043796620,1000.0,0.00027,60]
[340320492,1729043868512,299.55,8.219e-05,2]
[340320493,1729043904415,9955.99,9.903e-05,2]
[340320494,1729043909247,250.0,9.903e-05,2]
[340320495,1729043927963,1000.0,0.00027,60]
[340320496,1729043929948,200.0,9.899e-05,2]
[340320497,1729043964956,308.75905639,0.00027,120]
[340320498,1729043978318,1000.0,0.000215,40]
[340320499,1729044001791,1000.0,0.000215,40]
[340320503,1729044018254,1000.0,0.000215,40]
[340320504,1729044058163,1000.0,0.000215,40]
[340320505,1729044081234,23900.0,9.912e-05,2]
[340320506,1729044094900,1000.0,0.000215,40]
[340320507,1729044124585,1000.0,0.000215,40]
[340320508,1729044150206,1000.0,0.000215,40]
[340320509,1729044159187,250.0,9.916e-05,2]
[340320510,1729044193752,2000.0,0.00027,120]
[340320511,1729044201371,1000.0,0.000215,40]
[340320512,1729044227032,1000.0,0.000215,40]
[340320513,1729044241576,1000.0,0.000215,40]
[340320514,1729044250422,200.0,9.916e-05,2]
[340320516,1729044301995,1000.0,0.000215,40]
[340320517,1729044315909,1000.0,0.000215,40]
[340320518,1729044332025,1000.0,0.000215,40]
[340320519,1729044363120,179.67,9.924e-05,2]
[340320521,1729044408807,284.57,8.219e-05,2]
[340320524,1729044415724,204.89644983,0.00027,60]
[340320528,1729044438158,840.0,9.907e-05,2]
[340320531,1729044491705,250.0,9.901e-05,2]
[340320541,1729044632006,-284.57,0.00010471,2]
[340320542,1729044632015,-285.52,0.00010526,2]
[340320543,1729044632029,-548.16321584,0.00010526,2]
[340320544,1729044632040,-3327.96126539,0.00010526,2]
[340320545,1729044632051,-1232.35551877,0.00010526,2]
[340320546,1729044632060,-160.50011107,0.00010533,2]
[340320547,1729044632070,-150.0,0.0001069,2]
[340320548,1729044632235,-9.56796616,0.0001069,2]
[340320549,1729044632276,-290.43203384,0.0001069,2]
[340320550,1729044632285,-7244.2009,0.00010691,2]
[340320551,1729044632297,-261.8181,0.00010691,2]
[340320552,1729044632306,-514.195,0.00010691,2]
[340320553,1729044632315,-7487.40938924,0.00010691,2]
[340320554,1729044632327,-3703.34970573,0.00010691,2]
[340320555,1729044632336,-150.0,0.00010737,2]
[340320556,1729044632346,-150.0,0.00010761,2]
[340320557,1729044632356,-506.4387498,0.00010773,2]
[340320558,1729044632365,-150.0,0.00010785,2]
[340320559,1729044632375,-4194.9595802,0.00010791,2]
[340320560,1729044632386,-589.8483198,0.00010791,2]
[340320561,1729044632395,-49.36110718,0.00010791,2]
[340320562,1729044632406,-406.77852015,0.00010791,2]
[340320563,1729044632417,-2109.43741355,0.00010791,2]
[340320564,1729044632428,-301.2900896,0.00010791,2]
[340320565,1729044632439,-713.11573808,0.00010791,2]
[340320566,1729044632559,-600.81924,0.00010791,2]
[340320567,1729044632571,-2649.19645448,0.00010791,2]
[340320568,1729044632582,-658.25,0.00010791,2]
[340320570,1729044638040,-1851.34130064,0.00010791,2]
[340320571,1729044638051,-729.82228752,0.00010791,2]
[340320572,1729044638063,-289.4002629,0.00010791,2]
[340320573,1729044638074,-592.08569065,0.00010791,2]
[340320574,1729044638085,-281.55,0.00010791,2]
[340320575,1729044638216,-6628.30439943,0.00010791,2]
[340320576,1729044638228,-2183.16426548,0.00010791,2]
[340320577,1729044638239,-14469.96847138,0.00010791,2]
[340320578,1729044638256,-1177.0,0.00010791,2]
[340320579,1729044638267,-450.87290596,0.00010791,2]
[340320580,1729044638278,-13601.65539121,0.00010791,2]
[340320581,1729044638290,-16381.48089212,0.00010791,2]
[340320582,1729044638396,-464.49215407,0.00010791,2]
[340320583,1729044638408,-273.2828905,0.00010791,2]
[340320584,1729044638420,-594.5,0.00010791,2]
[340320585,1729044638577,-4009.83074,0.00010791,2]
[340320587,1729044640040,-534.65427157,0.00010791,2]
[340320589,1729044640222,-1527.510008,0.00010791,2]
[340320590,1729044640235,-37876.19280553,0.00010791,2]
[340320591,1729044640248,-76503.87136532,0.00010791,2]
[340320592,1729044640261,-1160.93975803,0.00010791,2]
[340320593,1729044640274,-262.54999999,0.00010791,2]
[340320594,1729044640404,-343.13376577,0.00010791,2]
[340320780,1729044643054,-21729.50511089,0.00010791,2]
[340320781,1729044643064,-1276.0268,0.00010791,2]
[340320782,1729044643074,-1000.0,0.00010791,2]
[340320783,1729044643083,-21741.2722,0.00010791,2]
[340320784,1729044643093,-499.99,0.00010791,2]
[340320785,1729044643102,-150.0,0.0001081,2]
[340320786,1729044643111,-150.0,0.00010818,2]
[340320787,1729044643120,-150.0,0.00010846,2]
[340320788,1729044643129,-172.773127,0.00010858,2]
[340320789,1729044643138,-7500.0,0.00010858,2]
[340320790,1729044643147,-150.0,0.00010864,2]
[340320791,1729044643157,-150.0,0.00010886,2]
[340320792,1729044643166,-150.0,0.00010887,2]
[340320793,1729044643175,-150.0,0.00010891,2]
[340320794,1729044643184,-150.0,0.000109,2]
[340320795,1729044643193,-567.70486586,0.000109,2]
[340320796,1729044643203,-199.66322773,0.000109,2]
[340320797,1729044643212,-199.66322772,0.000109,2]
[340320798,1729044643221,-150.0,0.00010928,2]
[340320799,1729044643230,-10600.8488261,0.00010942,2]
[340320800,1729044643239,-205.90727127,0.00010948,2]
[340320801,1729044643250,-171.72,0.00010949,2]
[340320802,1729044643261,-214.75410745,0.00010949,2]
[340320803,1729044643270,-3863.9281227,0.00010951,2]
[340320804,1729044643279,-47390.0586203,0.00010951,2]
[340320805,1729044643290,-1653.98857412,0.00010955,2]
[340320806,1729044643300,-855.0,0.00010958,2]
[340320807,1729044643310,-392.64488386,0.00010958,2]
[340320808,1729044643319,-500.0,0.00010958,2]
[340320809,1729044643330,-513.21465784,0.00010958,2]
[340320810,1729044643340,-500.0,0.00010958,2]
[340320811,1729044643349,-500.0,0.00010958,2]
[340320812,1729044643359,-500.0,0.00010958,2]
[340320813,1729044643370,-500.0,0.00010958,2]
[340320814,1729044643379,-500.0,0.00010958,2]
[340320815,1729044643388,-510.62772567,0.00010958,2]
[340320816,1729044643399,-151.0,0.00010958,2]
[340320817,1729044643409,-151.789509,0.00010958,2]
[340320818,1729044643418,-500.0,0.00010958,2]
[340320819,1729044643428,-511.14845988,0.00010958,2]
[340320820,1729044643437,-500.0,0.00010958,2]
[340320821,1729044643447,-500.0,0.00010958,2]
[340320822,1729044643455,-500.0,0.00010958,2]
[340320823,1729044643464,-507.22566015,0.00010958,2]
[340320824,1729044643473,-500.0,0.00010958,2]
[340320825,1729044643482,-510.80996577,0.00010958,2]
[340320826,1729044643491,-500.0,0.00010958,2]
[340320827,1729044643500,-500.0,0.00010958,2]
[340320828,1729044643509,-505.90923015,0.00010958,2]
[340320829,1729044643518,-500.0,0.00010958,2]
[340320830,1729044643528,-512.6388188,0.00010958,2]
[340320831,1729044643538,-500.0,0.00010958,2]
[340320832,1729044643547,-506.47987918,0.00010958,2]
[340320833,1729044643557,-500.0,0.00010958,2]
[340320834,1729044643567,-500.0,0.00010958,2]
[340320835,1729044643576,-500.0,0.00010958,2]
[340320836,1729044643585,-324.27767263,0.00010958,2]
[340320837,1729044643594,-500.0,0.00010958,2]
[340320838,1729044643604,-546.67446033,0.00010958,2]
[340320839,1729044643615,-500.0,0.00010958,2]
[340320840,1729044643625,-527.76039154,0.00010958,2]
[340320841,1729044643634,-500.0,0.00010958,2]
[340320842,1729044643643,-512.54560272,0.00010958,2]
[340320843,1729044643653,-292.01135863,0.00010958,2]
[340320844,1729044643662,-500.0,0.00010958,2]
[340320845,1729044643671,-498.86942881,0.00010958,2]
[340320846,1729044643680,-500.0,0.00010958,2]
[340320847,1729044643689,-512.63995499,0.00010958,2]
[340320848,1729044643699,-500.0,0.00010958,2]
[340320849,1729044643708,-510.91663928,0.00010958,2]
[340320851,1729044643718,-500.0,0.00010958,2]
[340320853,1729044643727,-164.73904115,0.00010958,2]
[340320854,1729044643737,-500.0,0.00010958,2]
[340320855,1729044643746,-161.99293458,0.00010958,2]
[340320856,1729044643755,-500.0,0.00010958,2]
[340320857,1729044643765,-515.39931292,0.00010958,2]
[340320858,1729044643774,-500.0,0.00010958,2]
[340320859,1729044643784,-507.6377755,0.00010958,2]
[340320860,1729044643793,-220.96755699,0.00010958,2]
[340320861,1729044643802,-500.0,0.00010958,2]
[340320862,1729044643812,-504.58799417,0.00010958,2]
[340320863,1729044643821,-500.0,0.00010958,2]
[340320864,1729044643831,-505.65363456,0.00010958,2]
[340320865,1729044643839,-500.0,0.00010958,2]
[340320866,1729044643848,-507.21723162,0.00010958,2]
[340320867,1729044643859,-500.0,0.00010958,2]
[340320868,1729044643868,-513.04941708,0.00010958,2]
[340320869,1729044643877,-513.41560951,0.00010958,2]
[340320870,1729044643887,-500.0,0.00010958,2]
[340320871,1729044643896,-260.55686466,0.00010958,2]
[340320872,1729044643905,-500.0,0.00010958,2]
[340320873,1729044643914,-506.27803007,0.00010958,2]
[340320874,1729044643923,-550.76159128,0.00010958,2]
[340320875,1729044643932,-500.0,0.00010958,2]
[340320876,1729044643942,-517.57179126,0.00010958,2]
[340320877,1729044643951,-500.0,0.00010958,2]
[340320878,1729044643960,-505.00573786,0.00010958,2]
[340320879,1729044643970,-500.0,0.00010958,2]
[340320880,1729044643979,-514.59871933,0.00010958,2]
[340320881,1729044643988,-500.0,0.00010958,2]
[340320882,1729044643997,-420.99099976,0.00010958,2]
[340320883,1729044644006,-500.0,0.00010958,2]
[340320884,1729044644015,-507.25837579,0.00010958,2]
[340320885,1729044644024,-500.0,0.00010958,2]
[340320886,1729044644033,-511.54832483,0.00010958,2]
[340320887,1729044644042,-500.0,0.00010958,2]
[340320888,1729044644051,-474.97472573,0.00010958,2]
[340320889,1729044644060,-500.0,0.00010958,2]
[340320890,1729044644069,-496.17796087,0.00010958,2]
[340320891,1729044644078,-500.0,0.00010958,2]
[340320892,1729044644087,-514.63529733,0.00010958,2]
[340320893,1729044644096,-500.0,0.00010958,2]
[340320894,1729044644106,-523.20620077,0.00010958,2]
[340320895,1729044644117,-500.0,0.00010958,2]
[340320896,1729044644127,-500.0,0.00010958,2]
[340320897,1729044644135,-500.0,0.00010958,2]
[340320898,1729044644145,-507.89313772,0.00010958,2]
[340320899,1729044644154,-500.0,0.00010958,2]
[340320900,1729044644163,-507.47102484,0.00010958,2]
[340320901,1729044644172,-500.0,0.00010958,2]
[340320902,1729044644182,-507.23454215,0.00010958,2]
[340320903,1729044644191,-500.0,0.00010958,2]
[340320904,1729044644200,-514.98754761,0.00010958,2]
[340320905,1729044644209,-500.0,0.00010958,2]
[340320906,1729044644218,-328.13774188,0.00010958,2]
[340320907,1729044644252,-179.13487202,0.00010958,2]
[340320908,1729044644262,-463.23074864,0.00010958,2]
[340320909,1729044644271,-500.0,0.00010958,2]
[340320910,1729044644280,-521.44228421,0.00010958,2]
[340320911,1729044644290,-500.0,0.00010958,2]
[340320912,1729044644300,-505.61086798,0.00010958,2]
[340320913,1729044644309,-500.0,0.00010958,2]
[340320914,1729044644318,-280.20362526,0.00010958,2]
[340320915,1729044644329,-500.0,0.00010958,2]
[340320916,1729044644338,-500.0,0.00010958,2]
[340320917,1729044644347,-210.05970934,0.00010958,2]
[340320918,1729044644356,-123.47789255,0.00010958,2]
[340320919,1729044644370,-376.52210745,0.00010958,2]
[340320920,1729044644379,-515.62642259,0.00010958,2]
[340320921,1729044644388,-500.0,0.00010958,2]
[340320922,1729044644397,-516.55925264,0.00010958,2]
[340320923,1729044644407,-500.0,0.00010958,2]
[340320924,1729044644416,-506.60094718,0.00010958,2]
[340320925,1729044644425,-500.0,0.00010958,2]
[340320926,1729044644434,-406.79148575,0.00010958,2]
[340320927,1729044644443,-500.0,0.00010958,2]
[340320928,1729044644452,-507.53928329,0.00010958,2]
[340320929,1729044644461,-500.0,0.00010958,2]
[340320930,1729044644471,-439.55329268,0.00010958,2]
[340320931,1729044644480,-500.0,0.00010958,2]
[340320932,1729044644489,-509.30654214,0.00010958,2]
[340320933,1729044644498,-500.0,0.00010958,2]
[340320934,1729044644507,-507.28396799,0.00010958,2]
[340320935,1729044644517,-500.0,0.00010958,2]
[340320936,1729044644526,-505.23441664,0.00010958,2]
[340320937,1729044644535,-454.23228165,0.00010958,2]
[340320938,1729044644569,-45.76771835,0.00010958,2]
[340320939,1729044644578,-389.44906365,0.00010958,2]
[340320940,1729044644590,-110.55093635,0.00010958,2]
[340320941,1729044644599,-389.44906365,0.00010958,2]
[340320942,1729044644612,-205.43134534,0.00010958,2]
[340320943,1729044644621,-505.8595665,0.00010958,2]
[340320944,1729044644631,-500.0,0.00010958,2]
[340320945,1729044644641,-506.78904798,0.00010958,2]
[340320946,1729044644650,-500.0,0.00010958,2]
[340320947,1729044644659,-500.0,0.00010958,2]
[340320948,1729044644668,-506.43412634,0.00010958,2]
[340320949,1729044644677,-500.0,0.00010958,2]
[340320950,1729044644687,-519.06713776,0.00010958,2]
[340320951,1729044644696,-500.0,0.00010958,2]
[340320952,1729044644705,-519.56073114,0.00010958,2]
[340320953,1729044644714,-500.0,0.00010958,2]
[340320954,1729044644723,-500.0,0.00010958,2]
[340320955,1729044644733,-500.0,0.00010958,2]
[340320956,1729044644742,-515.81980548,0.00010958,2]
[340320957,1729044644751,-500.0,0.00010958,2]
[340320958,1729044644761,-514.52031532,0.00010958,2]
[340320959,1729044644770,-500.0,0.00010958,2]
[340320960,1729044644779,-530.23692773,0.00010958,2]
[340320961,1729044644788,-500.0,0.00010958,2]
[340320962,1729044644798,-519.03224643,0.00010958,2]
[340320963,1729044644807,-500.0,0.00010958,2]
[340320964,1729044644815,-500.0,0.00010958,2]
[340320965,1729044644825,-500.0,0.00010958,2]